bitfinex-derivatives/quotes_BNBF0:USTF0_20251219
["timestamp","ask_amount","ask_price","bid_price","bid_amount"]
[1766107862895,1.21249997,826.53,823.61,0.2108452]
[1766107863098,1.21249997,826.52,823.61,0.2108452]
[1766107863399,1.21249997,826.51,823.61,0.2108452]
[1766107863598,1.21249997,826.5,823.61,0.2108452]
[1766107863799,1.21249997,826.49,823.61,0.2108452]
[1766107864097,1.21249997,826.48,823.61,0.2108452]
[1766107864297,1.21249997,826.47,823.61,0.2108452]
[1766107864494,1.21249997,826.46,823.61,0.2108452]
[1766107864694,1.21249997,826.45,823.61,0.2108452]
[1766107864896,1.21249997,826.44,823.61,0.2108452]
[1766107865193,1.21249997,826.43,823.61,0.2108452]
[1766107865395,1.21249997,826.42,823.61,0.2108452]
[1766107865597,1.21249997,826.41,823.61,0.2108452]
[1766107865797,1.21249997,826.4,823.61,0.2108452]
[1766107865994,1.21249997,826.39,823.61,0.2108452]
[1766107866195,1.21249997,826.38,823.61,0.2108452]
[1766107866396,1.21249997,826.37,823.61,0.2108452]
[1766107866600,1.21249997,826.36,823.61,0.2108452]
[1766107866797,1.21249997,826.35,823.61,0.2108452]
[1766107866999,1.21249997,826.34,823.61,0.2108452]
[1766107867300,1.21249997,826.33,823.61,0.2108452]
[1766107867598,1.21249997,826.32,823.61,0.2108452]
[1766107867798,1.21249997,826.31,823.61,0.2108452]
[1766107867998,1.21249997,826.3,823.61,0.2108452]
[1766107868198,1.21249997,826.29,823.61,0.2108452]
[1766107868497,1.21249997,826.28,823.61,0.2108452]
[1766107868694,1.21249997,826.27,823.61,0.2108452]
[1766107868994,1.21249997,826.26,823.61,0.2108452]
[1766107869198,1.21249997,826.25,823.61,0.2108452]
[1766107869397,9.206,826.87,823.61,0.2108452]
[1766107869398,1.21249997,826.24,823.61,0.2108452]
[1766107869598,1.21249997,826.23,823.61,0.2108452]
[1766107869895,1.21249997,826.22,823.61,0.2108452]
[1766107870099,1.21249997,826.21,823.61,0.2108452]
[1766107870398,1.21249997,826.2,823.61,0.2108452]
[1766107870595,1.21249997,826.19,823.61,0.2108452]
[1766107870799,1.21249997,826.18,823.61,0.2108452]
[1766107871096,1.21249997,826.17,823.61,0.2108452]
[1766107871301,9.206,826.87,823.61,0.2108452]
[1766107871599,1.21233758,826.86,823.61,0.2108452]
[1766107883505,9.206,826.87,823.61,0.2108452]
[1766107883805,1.21185056,826.86,823.61,0.2108452]
[1766107884905,1.21185056,826.85,823.61,0.2108452]
[1766107885109,13.01258237,826.88,823.61,0.2108452]
[1766107885307,1.21185056,826.87,823.61,0.2108452]
[1766107889707,53.26622852,826.81,823.61,0.2108452]
[1766107889910,1.21185056,826.8,823.61,0.2108452]
[1766107898015,1.21233942,826.79,823.61,0.2108452]
[1766107898311,1.21233942,826.78,823.61,0.2108452]
[1766107898512,1.21233942,826.77,823.61,0.2108452]
[1766107898714,1.21233942,826.76,823.61,0.2108452]
[1766107898914,1.21233942,826.75,823.61,0.2108452]
[1766107899214,1.21233942,826.74,823.61,0.2108452]
[1766107899410,1.21233942,826.73,823.61,0.2108452]
[1766107899613,1.21233942,826.72,823.61,0.2108452]
[1766107899913,1.21233942,826.71,823.61,0.2108452]
[1766107900114,1.21233942,826.7,823.61,0.2108452]
[1766107900314,1.21233942,826.69,823.61,0.2108452]
[1766107900511,1.21233942,826.68,823.61,0.2108452]
[1766107900715,1.21233942,826.67,823.61,0.2108452]
[1766107900913,1.21233942,826.66,823.61,0.2108452]
[1766107901114,1.21233942,826.65,823.61,0.2108452]
[1766107901316,1.21233942,826.64,823.61,0.2108452]
[1766107901611,1.21233942,826.63,823.61,0.2108452]
[1766107901814,1.21233942,826.62,823.61,0.2108452]
[1766107902015,1.21233942,826.61,823.61,0.2108452]
[1766107902212,1.21233942,826.6,823.61,0.2108452]
[1766107902416,1.21233942,826.59,823.61,0.2108452]
[1766107902614,1.21233942,826.58,823.61,0.2108452]
[1766107902915,1.21233942,826.57,823.61,0.2108452]
[1766107903113,1.21233942,826.56,823.61,0.2108452]
[1766107903317,1.21233942,826.55,823.61,0.2108452]
[1766107903515,1.21233942,826.54,823.61,0.2108452]
[1766107903819,1.21233942,826.53,823.61,0.2108452]
[1766107904119,1.21233942,826.52,823.61,0.2108452]
[1766107904319,1.21233942,826.51,823.61,0.2108452]
[1766107904614,1.21233942,826.5,823.61,0.2108452]
[1766107904816,1.21233942,826.49,823.61,0.2108452]
[1766107905021,13.7125269,826.48,823.61,0.2108452]
[1766107905217,1.21233942,826.47,823.61,0.2108452]
[1766107905517,10.01733942,826.47,823.61,0.2108452]
[1766107905721,1.21233942,826.46,823.61,0.2108452]
[1766107915830,1.2123358,826.45,823.61,0.2108452]
[1766107916032,1.2123358,826.44,823.61,0.2108452]
[1766107916328,1.2123358,826.43,823.61,0.2108452]
[1766107916629,1.2123358,826.42,823.61,0.2108452]
[1766107916831,1.2123358,826.41,823.61,0.2108452]
[1766107917029,1.2123358,826.4,823.61,0.2108452]
[1766107917226,1.21232819,826.39,823.61,0.2108452]
[1766107917429,1.21232819,826.38,823.61,0.2108452]
[1766107917729,1.21232819,826.37,823.61,0.2108452]
[1766107917927,1.21232819,826.36,823.61,0.2108452]
[1766107918130,1.21232819,826.35,823.61,0.2108452]
[1766107918326,1.21232819,826.34,823.61,0.2108452]
[1766107918631,1.21232819,826.33,823.61,0.2108452]
[1766107918828,1.21232819,826.32,823.61,0.2108452]
[1766107919129,1.21232819,826.31,823.61,0.2108452]
[1766107919426,1.21232819,826.3,823.61,0.2108452]
[1766107919628,1.21232819,826.29,823.61,0.2108452]
[1766107919829,1.21232819,826.28,823.61,0.2108452]
[1766107920026,1.21232819,826.27,823.61,0.2108452]
[1766107920231,1.21232819,826.26,823.61,0.2108452]
[1766107920432,1.21232819,826.25,823.61,0.2108452]
[1766107920632,1.21232819,826.24,823.61,0.2108452]
[1766107920832,1.21232819,826.23,823.61,0.2108452]
[1766107921032,1.21232819,826.22,823.61,0.2108452]
[1766107921233,1.21232819,826.21,823.61,0.2108452]
[1766107921532,1.21232819,826.2,823.61,0.2108452]
[1766107921732,1.21232819,826.19,823.61,0.2108452]
[1766107921926,1.21232819,826.18,823.61,0.2108452]
[1766107922137,1.21232819,826.17,823.61,0.2108452]
[1766107922432,1.21232819,826.16,823.61,0.2108452]
[1766107922635,1.21232819,826.15,823.61,0.2108452]
[1766107922833,1.21232819,826.14,823.61,0.2108452]
[1766107923036,1.21232819,826.13,823.61,0.2108452]
[1766107923236,1.21232819,826.12,823.61,0.2108452]
[1766107923439,1.21232819,826.11,823.61,0.2108452]
[1766107923637,1.21232819,826.1,823.61,0.2108452]
[1766107923838,8.805,826.47,823.61,0.2108452]
[1766107924038,1.21225396,826.46,823.61,0.2108452]
[1766107931646,1.21225396,826.45,823.61,0.2108452]
[1766107931945,1.21225396,826.44,823.61,0.2108452]
[1766107932145,1.21225396,826.43,823.61,0.2108452]
[1766107932346,1.21225396,826.42,823.61,0.2108452]
[1766107932547,1.21225396,826.41,823.61,0.2108452]
[1766107932746,1.21225396,826.4,823.61,0.2108452]
[1766107933048,1.21225396,826.39,823.61,0.2108452]
[1766107933246,1.21225396,826.38,823.61,0.2108452]
[1766107933546,1.21225396,826.37,823.61,0.2108452]
[1766107933746,1.21225396,826.36,823.61,0.2108452]
[1766107933946,1.21225396,826.35,823.61,0.2108452]
[1766107934251,1.21225396,826.34,823.61,0.2108452]
[1766107934449,12.50018748,826.48,823.61,0.2108452]
[1766107934450,1.21225396,826.33,823.61,0.2108452]
[1766107934649,1.21225396,826.32,823.61,0.2108452]
[1766107934850,1.21225396,826.31,823.61,0.2108452]
[1766107935149,1.21225396,826.3,823.61,0.2108452]
[1766107935349,1.21225396,826.29,823.61,0.2108452]
[1766107935645,1.21225396,826.28,823.61,0.2108452]
[1766107947859,0.21085989,825.74,823.61,0.2108452]
[1766107957667,6.748,825.73,823.61,0.2108452]
[1766107997811,6.748,825.73,823.3,52.29206921]
[1766107998014,6.748,825.73,823.81,0.21088992]
[1766108010820,0.21088097,825.84,823.81,0.21088992]
[1766108014719,9.515,825.83,823.81,0.21088992]
[1766108041853,0.21088097,825.84,823.81,0.21088992]
[1766108044457,6.536,825.83,823.81,0.21088992]
[1766108046061,18.93503566,825.83,823.81,0.21088992]
[1766108070879,1.21253045,825.82,823.81,0.21088992]
[1766108072283,18.93503566,825.83,823.81,0.21088992]
[1766108085295,1.21257233,825.82,823.81,0.21088992]
[1766108090095,9.929,825.81,823.81,0.21088992]
[1766108090299,1.21257233,825.8,823.81,0.21088992]
[1766108092799,9.929,825.81,823.81,0.21088992]
[1766108103210,1.21257235,825.8,823.81,0.21088992]
[1766108106617,9.929,825.81,823.81,0.21088992]
[1766108123221,12.39903566,825.83,823.81,0.21088992]
[1766108126729,7.986,825.82,823.81,0.21088992]
[1766108160260,1.21258421,825.81,823.81,0.21088992]
[1766108160958,1.21258421,825.8,823.81,0.21088992]
[1766108161160,1.21258421,825.79,823.81,0.21088992]
[1766108161360,1.21258421,825.78,823.81,0.21088992]
[1766108161561,1.21258421,825.77,823.81,0.21088992]
[1766108161861,12.39903566,825.83,823.81,0.21088992]
[1766108162062,1.21263708,825.82,823.81,0.21088992]
[1766108162261,12.39903566,825.83,823.81,0.21088992]
[1766108163560,8.418,825.82,823.81,0.21088992]
[1766108164762,1.21283669,825.81,823.81,0.21088992]
[1766108172778,1.21275017,825.8,823.81,0.21088992]
[1766108172977,1.21275017,825.79,823.81,0.21088992]
[1766108173180,1.21275017,825.78,823.81,0.21088992]
[1766108174879,13.12869679,825.79,823.81,0.21088992]
[1766108175076,1.21275017,825.78,823.81,0.21088992]
[1766108175280,13.12869679,825.79,823.81,0.21088992]
[1766108176177,1.21271064,825.78,823.81,0.21088992]
[1766108176478,13.12869679,825.79,823.81,0.21088992]
[1766108183688,0.21093402,825.4,823.81,0.21088992]
[1766108193397,9.39,825.39,823.81,0.21088992]
[1766108198096,9.39,825.39,823.29,56.38747174]
[1766108198403,9.39,825.39,823.96,0.21096727]
[1766108198701,9.39,825.39,823.95,8.61483691]
[1766108210111,0.21092763,825.32,824.0,0.21092763]
[1766108213714,9.39,825.39,824.0,0.21092763]
[1766108245438,0.21090206,825.52,824.0,0.21092763]
[1766108250044,9.933,825.51,824.0,0.21092763]
[1766108295582,0.21088033,825.63,824.0,0.21092763]
[1766108299583,7.279,825.62,824.0,0.21092763]
[1766108299783,19.17667165,825.62,824.0,0.21092763]
[1766108316599,11.89767165,825.62,824.0,0.21092763]
[1766108320701,6.705,825.61,824.0,0.21092763]
[1766108357820,0.21080624,826.53,824.0,0.21092763]
[1766108361724,9.056,826.52,824.0,0.21092763]
[1766108375834,0.21080624,826.53,824.0,0.21092763]
[1766108380139,22.96658543,826.52,824.0,0.21092763]
[1766108400954,23.17730487,826.52,824.0,0.21092763]
[1766108407059,13.36130487,826.52,824.0,0.21092763]
[1766108410059,13.36130487,826.52,823.7,54.98103661]
[1766108410257,13.36130487,826.52,824.24,0.21072072]
[1766108410758,7.054,826.51,824.24,0.21072072]
[1766108426077,1.21170981,826.5,824.24,0.21072072]
[1766108432881,1.21170981,826.49,824.24,0.21072072]
[1766108433184,13.36130487,826.52,824.24,0.21072072]
[1766108433185,1.21170981,826.48,824.24,0.21072072]
[1766108433384,1.21170981,826.47,824.24,0.21072072]
[1766108433584,13.36130487,826.52,824.24,0.21072072]
[1766108433782,1.20787893,826.51,824.24,0.21072072]
[1766108433985,1.20787937,826.5,824.24,0.21072072]
[1766108434185,1.20787937,826.49,824.24,0.21072072]
[1766108434384,1.20787937,826.48,824.24,0.21072072]
[1766108434583,13.36130487,826.52,824.24,0.21072072]
[1766108434788,1.20746536,826.51,824.24,0.21072072]
[1766108436088,7.93,826.5,824.24,0.21072072]
[1766108436290,1.20746536,826.49,824.24,0.21072072]
[1766108437389,1.20606248,826.48,824.24,0.21072072]
[1766108437692,1.20606248,826.47,824.24,0.21072072]
[1766108437884,7.93,826.5,824.24,0.21072072]
[1766108438090,1.20606248,826.49,824.24,0.21072072]
[1766108439294,7.93,826.5,824.24,0.21072072]
[1766108451395,1.20559301,826.49,824.24,0.21072072]
[1766108467608,1.20657773,826.48,824.24,0.21072072]
[1766108467805,1.20657773,826.47,824.24,0.21072072]
[1766108468009,1.20657773,826.46,824.24,0.21072072]
[1766108468209,1.20657773,826.45,824.24,0.21072072]
[1766108468408,1.20657773,826.44,824.24,0.21072072]
[1766108468709,1.20657773,826.43,824.24,0.21072072]
[1766108468906,1.20657773,826.42,824.24,0.21072072]
[1766108469210,1.20657773,826.41,824.24,0.21072072]
[1766108469406,1.20657773,826.4,824.24,0.21072072]
[1766108469606,1.20657773,826.39,824.24,0.21072072]
[1766108469809,1.20657773,826.38,824.24,0.21072072]
[1766108470012,1.20657773,826.37,824.24,0.21072072]
[1766108470206,1.20657773,826.36,824.24,0.21072072]
[1766108470406,1.20657773,826.35,824.24,0.21072072]
[1766108470605,7.93,826.5,824.24,0.21072072]
[1766108470606,1.20657773,826.34,824.24,0.21072072]
[1766108470910,1.20657773,826.33,824.24,0.21072072]
[1766108471110,1.20657773,826.32,824.24,0.21072072]
[1766108471311,1.20657773,826.31,824.24,0.21072072]
[1766108471512,1.20657773,826.3,824.24,0.21072072]
[1766108471809,1.20657773,826.29,824.24,0.21072072]
[1766108472107,1.20657773,826.28,824.24,0.21072072]
[1766108472306,1.20657773,826.27,824.24,0.21072072]
[1766108472510,1.20657773,826.26,824.24,0.21072072]
[1766108472711,1.20657773,826.25,824.24,0.21072072]
[1766108472908,1.20657773,826.24,824.24,0.21072072]
[1766108473208,1.20657773,826.23,824.24,0.21072072]
[1766108473412,1.20657773,826.22,824.24,0.21072072]
[1766108473613,1.20657773,826.21,824.24,0.21072072]
[1766108473808,1.20903516,826.2,824.24,0.21072072]
[1766108474007,1.20903516,826.19,824.24,0.21072072]
[1766108474211,1.20903516,826.18,824.24,0.21072072]
[1766108474411,1.20903516,826.17,824.24,0.21072072]
[1766108474609,1.20903516,826.16,824.24,0.21072072]
[1766108474813,1.20903516,826.15,824.24,0.21072072]
[1766108475014,13.36130487,826.52,824.24,0.21072072]
[1766108475215,1.20941145,826.51,824.24,0.21072072]
[1766108478312,9.733,826.5,824.24,0.21072072]
[1766108478512,1.20941145,826.49,824.24,0.21072072]
[1766108499937,9.733,826.5,824.24,0.21072072]
[1766108499938,1.21244969,826.48,824.24,0.21072072]
[1766108500241,1.21244969,826.47,824.24,0.21072072]
[1766108500440,1.21244969,826.46,824.24,0.21072072]
[1766108500641,1.21244969,826.45,824.24,0.21072072]
[1766108500841,1.21244969,826.44,824.24,0.21072072]
[1766108501041,1.21244969,826.43,824.24,0.21072072]
[1766108501238,1.21244969,826.42,824.24,0.21072072]
[1766108501539,1.21244969,826.41,824.24,0.21072072]
[1766108501742,1.21244969,826.4,824.24,0.21072072]
[1766108502039,1.21244969,826.39,824.24,0.21072072]
[1766108502342,1.21244969,826.38,824.24,0.21072072]
[1766108502538,1.21244969,826.37,824.24,0.21072072]
[1766108502837,1.21244969,826.36,824.24,0.21072072]
[1766108503038,14.23677128,826.35,824.24,0.21072072]
[1766108503241,1.21244969,826.34,824.24,0.21072072]
[1766108511148,1.21244969,826.33,824.24,0.21072072]
[1766108511346,1.21244969,826.32,824.24,0.21072072]
[1766108511544,1.21244969,826.31,824.24,0.21072072]
[1766108511849,1.21244969,826.3,824.24,0.21072072]
[1766108512147,1.21244969,826.29,824.24,0.21072072]
[1766108512348,1.21244969,826.28,824.24,0.21072072]
[1766108512549,1.21244969,826.27,824.24,0.21072072]
[1766108512748,1.21244969,826.26,824.24,0.21072072]
[1766108512945,13.02432159,826.35,824.24,0.21072072]
[1766108512946,1.21244969,826.25,824.24,0.21072072]
[1766108513144,1.21244969,826.24,824.24,0.21072072]
[1766108513344,1.21244969,826.23,824.24,0.21072072]
[1766108513548,1.21244969,826.22,824.24,0.21072072]
[1766108513749,1.21244969,826.21,824.24,0.21072072]
[1766108513945,1.21244969,826.2,824.24,0.21072072]
[1766108514145,1.21244969,826.19,824.24,0.21072072]
[1766108514347,1.21244969,826.18,824.24,0.21072072]
[1766108514648,1.21244969,826.17,824.24,0.21072072]
[1766108514848,54.92569499,826.14,824.24,0.21072072]
[1766108515050,1.21244969,826.13,824.24,0.21072072]
[1766108517048,8.131,826.12,824.24,0.21072072]
[1766108517252,1.21244969,826.11,824.24,0.21072072]
[1766108521651,1.21270409,826.1,824.24,0.21072072]
[1766108521856,1.21270409,826.09,824.24,0.21072072]
[1766108522057,1.21270409,826.08,824.24,0.21072072]
[1766108522353,1.21270409,826.07,824.24,0.21072072]
[1766108522556,1.21270409,826.06,824.24,0.21072072]
[1766108522757,1.21270409,826.05,824.24,0.21072072]
[1766108522957,1.21270409,826.04,824.24,0.21072072]
[1766108523158,1.21270409,826.03,824.24,0.21072072]
[1766108523457,1.21270409,826.02,824.24,0.21072072]
[1766108523653,1.21270409,826.01,824.24,0.21072072]
[1766108523859,1.21270409,826.0,824.24,0.21072072]
[1766108524153,1.21270409,825.99,824.24,0.21072072]
[1766108524357,1.21270409,825.98,824.24,0.21072072]
[1766108524555,1.21270409,825.97,824.24,0.21072072]
[1766108524758,1.21270409,825.96,824.24,0.21072072]
[1766108524954,1.21270409,825.95,824.24,0.21072072]
[1766108525254,1.21270409,825.94,824.24,0.21072072]
[1766108525456,1.21270409,825.93,824.24,0.21072072]
[1766108525756,1.21270409,825.92,824.24,0.21072072]
[1766108526058,1.21270409,825.91,824.24,0.21072072]
[1766108526258,1.21270409,825.9,824.24,0.21072072]
[1766108526456,1.21270409,825.89,824.24,0.21072072]
[1766108526662,1.21270409,825.88,824.24,0.21072072]
[1766108526860,1.21270409,825.87,824.24,0.21072072]
[1766108527059,1.21270409,825.86,824.24,0.21072072]
[1766108527258,8.131,826.12,824.24,0.21072072]
[1766108527456,1.21243248,826.11,824.24,0.21072072]
[1766108527661,8.131,826.12,824.24,0.21072072]
[1766108529960,1.21216425,826.11,824.24,0.21072072]
[1766108530562,1.21216405,826.1,824.24,0.21072072]
[1766108530862,1.21216405,826.09,824.24,0.21072072]
[1766108531060,1.21216405,826.08,824.24,0.21072072]
[1766108531261,8.131,826.12,824.24,0.21072072]
[1766108531461,1.21216405,826.11,824.24,0.21072072]
[1766108556569,8.131,826.12,824.24,0.21072072]
[1766108556874,1.21230313,826.11,824.24,0.21072072]
[1766108566380,1.21230313,826.1,824.24,0.21072072]
[1766108566584,1.21230313,826.09,824.24,0.21072072]
[1766108566780,1.21230313,826.08,824.24,0.21072072]
[1766108566979,1.21230313,826.07,824.24,0.21072072]
[1766108567187,54.92569499,826.14,824.24,0.21072072]
[1766108567188,1.21230313,826.06,824.24,0.21072072]
[1766108567380,1.21230313,826.05,824.24,0.21072072]
[1766108567580,1.21230313,826.04,824.24,0.21072072]
[1766108567785,1.21230313,826.03,824.24,0.21072072]
[1766108567985,1.21230313,826.02,824.24,0.21072072]
[1766108568185,54.92569499,826.14,824.24,0.21072072]
[1766108568384,1.21230346,826.13,824.24,0.21072072]
[1766108569487,8.544,826.12,824.24,0.21072072]
[1766108569685,1.21230346,826.11,824.24,0.21072072]
[1766108590007,8.544,826.12,824.24,0.21072072]
[1766108593206,1.21243785,826.11,824.24,0.21072072]
[1766108601110,0.21084775,825.65,824.24,0.21072072]
[1766108610318,0.21084775,825.65,824.06,9.10713489]
[1766108610520,0.21084775,825.65,824.38,0.21083626]
[1766108617838,8.457,825.64,824.38,0.21083626]
[1766108647757,0.21084775,825.65,824.38,0.21083626]
[1766108651360,5.875,825.64,824.38,0.21083626]
[1766108651860,19.17801703,825.64,824.38,0.21083626]
[1766108667378,13.30301703,825.64,824.38,0.21083626]
[1766108670979,7.908,825.63,824.38,0.21083626]
[1766108706006,13.51388203,825.64,824.38,0.21083626]
[1766108710410,8.68,825.63,824.38,0.21083626]
[1766108740135,13.51388203,825.64,824.38,0.21083626]
[1766108743539,9.609,825.63,824.38,0.21083626]
[1766108771558,13.30301703,825.64,824.38,0.21083626]
[1766108772256,55.9507161,825.83,824.38,0.21083626]
[1766108772754,0.21087011,825.67,824.38,0.21083626]
[1766108775057,9.931,825.66,824.38,0.21083626]
[1766108775255,23.32193152,825.66,824.38,0.21083626]
[1766108794175,13.39093152,825.66,824.38,0.21083626]
[1766108797778,10.2778419,825.65,823.71,55.28904853]
[1766108797978,1.2128419,825.64,824.28,0.21094105]
[1766108798281,1.2128419,825.64,823.71,55.28904853]
[1766108798481,1.2128419,825.64,824.28,0.21094233]
[1766108798980,1.2128419,825.64,823.71,55.28904853]
[1766108799982,1.2128419,825.64,824.19,0.21094233]
[1766108801283,9.065,825.65,824.19,0.21094233]
[1766108813490,1.21020198,825.64,824.19,0.21094233]
[1766108814987,1.21020198,825.64,823.37,0.01380109]
[1766108815189,1.21020198,825.64,822.55,0.01245711]
[1766108815393,1.21020198,825.64,824.09,0.21106579]
[1766108815590,1.21020198,825.64,823.27,0.01325344]
[1766108815894,1.21020198,825.64,824.09,0.21106579]
[1766108816093,1.21020198,825.64,823.27,0.00860854]
[1766108816293,1.21020198,825.64,822.45,0.01096785]
[1766108816493,1.21020198,825.64,822.16,64.57828075]
[1766108817392,1.20804407,825.63,823.02,0.2110914]
[1766108817596,1.20804407,825.62,823.02,0.2110914]
[1766108817796,9.065,825.65,823.02,0.2110914]
[1766108817996,1.20841174,825.64,823.02,0.2110914]
[1766108821298,9.065,825.65,823.02,0.2110914]
[1766108845903,13.39093152,825.66,823.02,0.2110914]
[1766108848507,9.931,825.65,823.02,0.2110914]
[1766108860617,13.39093152,825.66,823.02,0.2110914]
[1766108864219,8.521,825.65,823.02,0.2110914]
[1766108871727,1.21288646,825.64,823.02,0.2110914]
[1766108880228,56.52256009,825.56,823.02,0.2110914]
[1766108880429,1.21288646,825.55,823.02,0.2110914]
[1766108894544,1.21324347,825.54,823.02,0.2110914]
[1766108894744,1.21324347,825.53,823.02,0.2110914]
[1766108894943,1.21324347,825.52,823.02,0.2110914]
[1766108895144,1.21324347,825.51,823.02,0.2110914]
[1766108895344,1.21324347,825.5,823.02,0.2110914]
[1766108895545,1.21324347,825.49,823.02,0.2110914]
[1766108895845,1.21324347,825.48,823.02,0.2110914]
[1766108896044,1.21324347,825.47,823.02,0.2110914]
[1766108896244,1.21239574,825.46,823.02,0.2110914]
[1766108896443,1.21239574,825.45,823.02,0.2110914]
[1766108896644,1.21239574,825.44,823.02,0.2110914]
[1766108896845,1.21239574,825.43,823.02,0.2110914]
[1766108897045,1.21239574,825.42,823.02,0.2110914]
[1766108897245,1.21239574,825.41,823.02,0.2110914]
[1766108897443,1.21239574,825.4,823.02,0.2110914]
[1766108897652,1.21239574,825.39,823.02,0.2110914]
[1766108897943,1.21239574,825.38,823.02,0.2110914]
[1766108898147,1.21239574,825.37,823.02,0.2110914]
[1766108898348,1.21239574,825.36,823.02,0.2110914]
[1766108898643,1.21239574,825.35,823.02,0.2110914]
[1766108898943,1.21239574,825.34,823.02,0.2110914]
[1766108899148,1.21239574,825.33,823.02,0.2110914]
[1766108899344,13.35036283,825.41,823.02,0.2110914]
[1766108899545,1.21154008,825.4,823.02,0.2110914]
[1766108908853,7.584,825.39,823.02,0.2110914]
[1766108909053,1.21154008,825.38,823.02,0.2110914]
[1766108926258,1.21326326,825.37,823.02,0.2110914]
[1766108926461,1.21326326,825.36,823.02,0.2110914]
[1766108926761,1.21326326,825.35,823.02,0.2110914]
[1766108927057,1.21326326,825.34,823.02,0.2110914]
[1766108927260,7.584,825.39,823.02,0.2110914]
[1766108927261,1.21326326,825.33,823.02,0.2110914]
[1766108927562,1.21326326,825.32,823.02,0.2110914]
[1766108927860,1.21326326,825.31,823.02,0.2110914]
[1766108928061,1.21326326,825.3,823.02,0.2110914]
[1766108928259,7.584,825.39,823.02,0.2110914]
[1766108928456,1.2134422,825.38,823.02,0.2110914]
[1766108932266,1.21348166,825.37,823.02,0.2110914]
[1766108932560,1.21348166,825.36,823.02,0.2110914]
[1766108932864,1.21348166,825.35,823.02,0.2110914]
[1766108933061,1.21348166,825.34,823.02,0.2110914]
[1766108933361,1.21348166,825.33,823.02,0.2110914]
[1766108933561,1.21348166,825.32,823.02,0.2110914]
[1766108933762,1.21348166,825.31,823.02,0.2110914]
[1766108933959,1.21348166,825.3,823.02,0.2110914]
[1766108934162,1.21348166,825.29,823.02,0.2110914]
[1766108934360,1.21348166,825.28,823.02,0.2110914]
[1766108934561,1.21348166,825.27,823.02,0.2110914]
[1766108934761,1.21348166,825.26,823.02,0.2110914]
[1766108934960,1.21348166,825.25,823.02,0.2110914]
[1766108935163,1.21348166,825.24,823.02,0.2110914]
[1766108935360,1.21349496,825.23,823.02,0.2110914]
[1766108935562,7.584,825.39,823.02,0.2110914]
[1766108935761,1.21349496,825.38,823.02,0.2110914]
[1766108944570,1.21358642,825.37,823.02,0.2110914]
[1766108944770,1.21358642,825.36,823.02,0.2110914]
[1766108945068,1.21358642,825.35,823.02,0.2110914]
[1766108945271,1.21358642,825.34,823.02,0.2110914]
[1766108945467,1.21358642,825.33,823.02,0.2110914]
[1766108945769,1.21358642,825.32,823.02,0.2110914]
[1766108945971,1.21358642,825.31,823.02,0.2110914]
[1766108946170,1.21358642,825.3,823.02,0.2110914]
[1766108946372,1.21358642,825.29,823.02,0.2110914]
[1766108946568,1.21358642,825.28,823.02,0.2110914]
[1766108946770,1.21358642,825.27,823.02,0.2110914]
[1766108946970,1.21358642,825.26,823.02,0.2110914]
[1766108947169,1.21358642,825.25,823.02,0.2110914]
[1766108947368,1.21358642,825.24,823.02,0.2110914]
[1766108947573,1.21358642,825.23,823.02,0.2110914]
[1766108947874,1.21365162,825.22,823.02,0.2110914]
[1766108948173,1.21365162,825.21,823.02,0.2110914]
[1766108948372,1.21365162,825.2,823.02,0.2110914]
[1766108948571,1.21365162,825.19,823.02,0.2110914]
[1766108948773,1.21365162,825.18,823.02,0.2110914]
[1766108949071,1.21365162,825.17,823.02,0.2110914]
[1766108949274,1.21365162,825.16,823.02,0.2110914]
[1766108949472,1.21365162,825.15,823.02,0.2110914]
[1766108949676,1.21365162,825.14,823.02,0.2110914]
[1766108949971,1.21365162,825.13,823.02,0.2110914]
[1766108950175,1.21365162,825.12,823.02,0.2110914]
[1766108950373,1.21365162,825.11,823.02,0.2110914]
[1766108950576,1.21365162,825.1,823.02,0.2110914]
[1766108950773,1.21365162,825.09,823.02,0.2110914]
[1766108950977,1.21365162,825.08,823.02,0.2110914]
[1766108951277,1.21365162,825.07,823.02,0.2110914]
[1766108951475,1.21365162,825.06,823.02,0.2110914]
[1766108951675,7.584,825.39,823.02,0.2110914]
[1766108951874,1.21350793,825.38,823.02,0.2110914]
[1766108958380,1.21377703,825.37,823.02,0.2110914]
[1766108958679,1.21377703,825.36,823.02,0.2110914]
[1766108958879,7.584,825.39,823.02,0.2110914]
[1766108959179,1.21377703,825.38,823.02,0.2110914]
[1766108960579,7.584,825.39,823.02,0.2110914]
[1766108960882,1.21377753,825.38,823.02,0.2110914]
[1766108963180,1.21377753,825.37,823.02,0.2110914]
[1766108963384,1.21377753,825.36,823.02,0.2110914]
[1766108963584,1.21377753,825.35,823.02,0.2110914]
[1766108963784,1.21377753,825.34,823.02,0.2110914]
[1766108964085,1.21377753,825.33,823.02,0.2110914]
[1766108964287,1.21377753,825.32,823.02,0.2110914]
[1766108964485,1.21377753,825.31,823.02,0.2110914]
[1766108964685,1.21377753,825.3,823.02,0.2110914]
[1766108964881,1.21377753,825.29,823.02,0.2110914]
[1766108965082,1.21377753,825.28,823.02,0.2110914]
[1766108965384,1.21377753,825.27,823.02,0.2110914]